Cogmind - Beta 13 @@@ ROGUE MODE // 2024.03.04 @ 21:11:17 Player: SunE Result: Destroyed by G-34 Mercenary with Small Laser Performance ------------- Evolutions (1) 500 Regions Visited (2) 400 Robots Destroyed (25) 125 Value Destroyed (595) 595 Prototype IDs (0) 0 Alien Tech Used (0) 0 Bonus (0) 0 TOTAL SCORE: 1620 Bonus ------- None Cogmind --------- Core Integrity 0/400 Matter 300/300 Energy 100/100 System Corruption 0% Temperature Cool (6) Movement Core (200) Ox3 Location -9/Materials Parts ------- > --- POWER (2) -------- (None) > --- PROPULSION (3) --- (None) > --- UTILITY (2) ------ Medium Storage Unit Visual Processing Unit > --- WEAPON (2) ------- (None) > --- INVENTORY (10) --- (None) Peak State ------------ > --- POWER ------------ Light Ion Engine Light Ion Engine > --- PROPULSION ------- Aluminum Leg Aluminum Leg Aluminum Leg > --- UTILITY ---------- Medium Storage Unit Light Armor Plating > --- WEAPON ----------- Assault Rifle Heavy Assault Rifle > --- INVENTORY -------- Light Assault Rifle [Rating: 10] Favorites ----------- Power Light Ion Engine Engine Light Ion Engine Propulsion Aluminum Leg Treads Light Treads Leg Aluminum Leg Utility Small Storage Unit Device ECM Suite Storage Small Storage Unit Processor Visual Processing Unit Protection Light Armor Plating Weapon Light Assault Rifle Energy Gun Medium Laser Ballistic Gun Light Assault Rifle Build | -11 -10 -9 ------- Run | Yrd Mat Mat Slots Evolved 2 | . . 2 Power 1 | . . 1 Propulsion 1 | . . 1 Utility . | . . . Weapon . | . . . Parts Attached 25 | 6 9 10 Power 6 | 1 3 2 Engine 6 | 1 3 2 Core . | . . . Reactor . | . . . Propulsion 7 | 2 1 4 Treads 1 | . . 1 Leg 6 | 2 1 3 Wheel . | . . . Hover . | . . . Flight . | . . . Utility 6 | 1 3 2 Device 1 | . 1 . Storage 3 | 1 2 . Processor 1 | . . 1 Hackware . | . . . Protection 1 | . . 1 Artifact . | . . . Weapon 6 | 2 2 2 Energy Gun 1 | 1 . . Energy Cannon . | . . . Ballistic Gun 5 | 1 2 2 Ballistic Cannon . | . . . Launcher . | . . . Special Weapon . | . . . Impact Weapon . | . . . Slashing Weapon . | . . . Piercing Weapon . | . . . Special Melee Weapon . | . . . Unidentified Prototypes . | . . . Parts Lost 13 | . 1 12 Power 4 | . 1 3 Propulsion 4 | . . 4 Utility 2 | . . 2 Weapon 3 | . . 3 Highest Loss Streak 5 | . 1 5 To Critical Strikes . | . . . Average Slot Usage (%) 89 | . 98 70 Engine 13 | . 13 13 Leg 24 | . 28 15 Storage 21 | . 25 11 Protection 2 | . . 7 Energy Gun 3 | . 5 . Ballistic Gun 20 | . 22 18 Naked Turns . | . . . Heaviest Build 91 | 11 91 28 Greatest Support 30 | 20 20 30 Greatest Overweight (x) 4 | 3 4 4 Average Overweight (x) 1 | . 2 . Largest Inventory Capacity 25 | 8 25 10 Average Capacity 18 | 7 22 10 Most Carried 4 | 4 3 3 Average Carried 1 | 1 1 1 Final Capacity 10 | 8 10 10 Final Carried 2 | 2 2 . Class Distribution -------------------- 79% | Mutant 20% | Scavenger-Mutant Dominant Class ---------------- Mutant | -10/Materials Scavenger-Mutant | -9/Materials Resources | -11 -10 -9 ----------- Run | Yrd Mat Mat Matter Collected 681 | 218 132 331 Remotely . | . . . Salvage Created 810 | . 295 515 Parts 58 | . 24 34 Haulers Intercepted . | . . . Recyclers Shooed . | . . . Parts Field Recycled . | . . . Retrieved Matter . | . . . Parts Self-Destructed . | . . . Prevented . | . . . Kills | -11 -10 -9 ------- Run | Yrd Mat Mat Combat Hostiles Destroyed 21 | . 12 9 Guns 21 | . 12 9 Classes Destroyed 5 | . 3 2 Recycler 2 | . . 2 Watcher 2 | . 2 . Swarmer 9 | . 9 . Grunt 9 | . 3 6 Sentry 3 | . . 3 Best Kill Streak 6 | . 4 6 Combat Bots Only 4 | . 4 4 Max Kills in Single Turn 2 | . 2 2 Gunslinging 1 | . 1 . Exploded . | . . . Melee . | . . . Uniques/NPCs Destroyed . | . . . Combat | -11 -10 -9 -------- Run | Yrd Mat Mat Hostile Shots Fired 223 | . 95 128 Missed 68 | . 28 40 Damage Taken 1670 | . 545 1125 Core 467 | . 65 402 Absorbed by Shields . | . . . Core Remaining (%) 87 | 100 74 . Volleys Fired 76 | . 31 45 Largest 2 | . 2 2 Hottest 70 | . 70 43 Shots Fired 139 | . 62 77 Gun 139 | . 62 77 Cannon . | . . . Launcher . | . . . Special . | . . . Kinetic 124 | . 47 77 Thermal 15 | . 15 . Explosive . | . . . Electromagnetic . | . . . Robot Hit Streak 8 | . 7 8 Robot Miss Streak 6 | . 3 6 Penetration Max . | . . . Secondary Targets 3 | . 3 . Max Gunslinging Chain 1 | . 1 . Shots Hit Robots 84 | . 34 50 Core Hits 41 | . 20 21 Critical Kills 1 | . 1 . Critical Parts Destroyed . | . . . Critical Strikes 2 | . 2 . Burn 1 | . 1 . Destroy 1 | . 1 . Melee Attacks . | . . . Impact . | . . . Slashing . | . . . Piercing . | . . . Sneak Attacks . | . . . Combat Hostiles . | . . . Follow-up Attacks . | . . . Damage Inflicted 1282 | . 394 888 Guns 1089 | . 383 706 Cannons . | . . . Explosions 182 | . . 182 Melee . | . . . Ramming 11 | . 11 . Kinetic 975 | . 269 706 Thermal 164 | . 114 50 Explosive . | . . . Electromagnetic 132 | . . 132 Impact . | . . . Slashing . | . . . Piercing . | . . . Highest Corruption . | . . . Average Corruption . | . . . Corruption Purged . | . . . Corruption Blocked . | . . . Overload Shots . | . . . Overflow Damage 21 | . . 21 Projectiles . | . . . Explosions 21 | . . 21 Melee . | . . . Knockbacks 1 | . 1 . Impact 1 | . 1 . Kinetic . | . . . Secondary . | . . . Self-Inflicted Damage 100 | . . 100 Shots 4 | . . 4 Rammed . | . . . Targets Rammed 3 | . 3 . Kicked 3 | . 3 . Crushed . | . . . Highest Temperature 170 | . 170 21 Average Temperature 42 | . 63 8 Received Heat Transfer 519 | . 54 465 Siege Activations . | . . . Robots Corrupted . | . . . Combat Hostiles . | . . . Parts Fried . | . . . Impact Corruptions . | . . . Robots Melted . | . . . Combat Hostiles . | . . . Parts Melted 2 | . 2 . Heat Transferred 507 | . 407 100 Parts Sabotaged . | . . . Parts Stolen . | . . . Parts Stripped . | . . . Power Chain Reactions 2 | . . 2 Alert | -11 -10 -9 ------- Run | Yrd Mat Mat Peak Influence 283 | . 170 283 Initial 71 | . . 71 Average 83 | . 58 154 Maximum Alert Level 1 | . . 1 Low Security (%) 91 | 100 100 70 Level 1 8 | . . 29 Level 2 . | . . . Level 3 . | . . . Level 4 . | . . . Level 5 . | . . . High Security . | . . . Max Security . | . . . Squads Dispatched 4 | . 1 3 Investigation 2 | . . 2 Extermination . | . . . Reinforcement 2 | . 1 1 Assault . | . . . Garrison . | . . . Intercept . | . . . Searches Triggered . | . . . Construction Impeded . | . . . Haulers Reinforced . | . . . Active Scanning Responses . | . . . Cargo Convoy Interrupts . | . . . Stealth | -11 -10 -9 --------- Run | Yrd Mat Mat Distress Signals 1 | . . 1 Communications Jammed . | . . . Distress Signals . | . . . Times Spotted 37 | . 18 19 Peak Tracking Total 6 | . 4 6 Tactical Retreats 2 | . 2 . Traps | -11 -10 -9 ------- Run | Yrd Mat Mat Traps Triggered 1 | . . 1 Indirectly . | . . . Trap Hack Attempts . | . . . Triggered . | . . . Disarmed . | . . . Reprogrammed . | . . . Reused . | . . . Traps Extracted . | . . . Installed . | . . . Triggered . | . . . Machines | -11 -10 -9 ---------- Run | Yrd Mat Mat Machines Disabled 2 | . . 2 Max in Single Turn 2 | . . 2 Machines Repaired . | . . . Machines Dismantled . | . . . Machines Sabotaged . | . . . Overloaded Fab Kills . | . . . Hacking | -11 -10 -9 --------- Run | Yrd Mat Mat Machines Accessed 4 | . 3 1 Terminals 3 | . 2 1 Fabricators . | . . . Repair Stations . | . . . Recycling Units 1 | . 1 . Scanalyzers . | . . . Garrison Access . | . . . Total Hacks 10 | . 7 3 Successful 8 | . 6 2 Failed 2 | . 1 1 Catastrophic . | . . . Database Lockouts . | . . . Manual . | . . . Terminals 8 | . 5 3 Fabricators . | . . . Repair Stations . | . . . Recycling Units 2 | . 2 . Scanalyzers . | . . . Garrison Access . | . . . Terminal Hacks 7 | . 5 2 Record 3 | . 2 1 Alert Level 1 | . . 1 Dispatch Records 1 | . 1 . Maintenance Status 1 | . 1 . Hauler Manifests 1 | . 1 . Fabricator Hacks . | . . . Repair Station Hacks . | . . . Recycling Unit Hacks 1 | . 1 . Retrieve Matter 1 | . 1 . Scanalyzer . | . . . Garrison Access Hacks . | . . . Unauthorized Hacks . | . . . Terminals . | . . . Fabricators . | . . . Repair Stations . | . . . Recycling Units . | . . . Scanalyzers . | . . . Garrison Access . | . . . Data Cores Recovered . | . . . Used . | . . . Hacking Detections 2 | . 1 1 Full Trace Events 1 | . . 1 Feedback Events . | . . . Feedback Blocked . | . . . Robot Schematics Acquired . | . . . Robots Built . | . . . Authchips . | . . . Time . | . . . Total Robot Build Rating . | . . . Part Schematics Acquired . | . . . Parts Built . | . . . Authchips . | . . . Time . | . . . Total Part Build Rating . | . . . Parts Repaired . | . . . Time . | . . . Parts Recycled . | . . . Recycled Matter . | . . . Retrieved Matter . | . . . Retrieved Components . | . . . Parts Scanalyzed . | . . . Part Schematics Acquired . | . . . Parts Damaged . | . . . Bothacking | -11 -10 -9 ------------ Run | Yrd Mat Mat Used RIF Installer . | . . . Robots Hacked . | . . . Non-combat . | . . . Combat . | . . . Robot Hacks Applied . | . . . Relay Couplers Released . | . . . Fabnet Peak Effective % . | . . . Robots Rewired . | . . . Allies Hacked . | . . . Hacks Repelled . | . . . Allies | -11 -10 -9 -------- Run | Yrd Mat Mat Total Allies . | . . . Largest Group . | . . . Highest-Rated Group . | . . . Highest-Rated Ally . | . . . Total Orders . | . . . Ally Attacks . | . . . Total Damage . | . . . Kills . | . . . Allies Corrupted . | . . . Allies Melted . | . . . Intel | -11 -10 -9 ------- Run | Yrd Mat Mat Robot Analysis Total . | . . . Derelict Logs Recovered . | . . . Drone Launches . | . . . Drone Recoveries . | . . . Exploration | -11 -10 -9 ------------- Run | Yrd Mat Mat Turns Passed 1680 | 97 1087 496 Spaces Moved 602 | 72 330 200 Core 32 | 15 . 17 Treads 32 | . . 32 Legs 538 | 57 330 151 Wheels . | . . . Hover . | . . . Flight . | . . . Fastest Speed 50 | 50 120 120 Average Speed 234 | 115 293 178 Slowest Speed 400 | 200 400 260 Overloaded Moves . | . . . Propulsion Burnouts . | . . . Robots Hopped . | . . . Cave-ins Triggered . | . . . Exploration Rate (%) 22 | 4 47 16 Regions Visited 2 Branch Regions . Pre-discovered Areas . | . . . Known Exits Taken . | . . . Unknown Exits Taken 2 | 1 1 . Scrap Searched . | . . . Spaces Dug . | . . . Terrain Destroyed 7 | . . 7 Melee . | . . . Projectile . | . . . AOE 7 | . . 7 Terrain Rammed . | . . . Walls Destroyed . | . . . Machines Disabled . | . . . Actions | -11 -10 -9 --------- Run | Yrd Mat Mat Total 734 | 85 384 265 Wait 2 | . . 2 Move 600 | 71 329 200 Hop . | . . . Pick Up 21 | 8 7 6 Fast Attach . | . . . Attach 18 | 6 3 9 Detach 1 | . . 1 Swap 7 | . 6 1 Drop 6 | . 5 1 Fire 76 | . 31 45 Melee . | . . . Ram . | . . . Kick 3 | . 3 . Crush . | . . . Escape Stasis . | . . . Rewire . | . . . Trap . | . . . Miscellaneous . | . . . Route ------- -11/Scrapyard -10/Materials -9/Materials History --------- Turn | Location | Event 22 | -11/Scrapyard | Discovered new exit (range 15) 98 | -11/Scrapyard | Entered Materials 306 | -10/Materials | Build established: Mutant 969 | -10/Materials | Discovered new exit (range 10) 1185 | -10/Materials | Entered another Materials area 1185 | -9/Materials | Evolved 2 slots: Power x1, Propulsion x1 1344 | -9/Materials | Lost 3 parts (1p2n) 1658 | -9/Materials | Lost 5 parts (1p2n1u1w) 1658 | -9/Materials | Core integrity fell below 50% 1674 | -9/Materials | Core integrity fell below 20% 1681 | -9/Materials | Destroyed by G-34 Mercenary with Small Laser Last Messages --------------- 01613_ R-06 Scavenger collects Terrain Scanner. 01617_ Lgt. Assault Rifle destroyed. 01622_ G-34 Mercenary destroyed. 01623_ R-06 Scavenger collects Aluminum Leg. 01625_ R-06 Scavenger collects Ion Engine. 01627_ Aluminum Leg destroyed. 01642_ G-34 Mercenary destroyed. 01644_ Acquired 9 matter. 01644_ R-06 Scavenger collects Aluminum Leg. 01647_ R-06 Scavenger collects Heat Sink. 01649_ R-06 Scavenger collects Aluminum Leg. 01649_ Acquired 22 matter. 01659_ Hvy. Assault Rifle destroyed. 01660_ Acquired 10 matter. 01666_ W-16 Scout sends out distress signal. 01676_ S-10 Pest destroyed. 01680_ R-06 Scavenger suffers critical hit (Destroy). 01680_ R-06 Scavenger destroyed. 01680_ R-06 Scavenger collects Flight Unit. Map ----- +----------------------------------------------------+ | ?????????????????????????????????????????????????? | | ?????????????????????????????????????????????????? | | #######??????????????????????????????????????????? | | #??????????????????????????????????????????? | | #??????????????????????????????????????????? | | #??????????????????????????????????????????? | | ### #??????????????????????????????????????????? | | ??# #??????????????????????????????????????????? | | ??# #?????#######??????????????????????????????? | | ??# ####### #??????????????????????????????? | | ??# | #??????????????????????????????? | | ??# #??????????????????????????????? | | ??# #??????????????????????????????? | | ??########### #??????????????????????????????? | | ??????######## ##??????????????????????????????? | | ??????# # #???????????????????????????????? | | ??????# """" # #???????????????????????????????? | | ??????# """" + #########???????????????????????? | | ??????# """" # ## #???????????????????????? | | ??????# # ## """ #???????????????????????? | | ??????# # ## "Y" #???????????????????????? | | ############## ## #???????????????????????? | | # ## #???????????????????????? | | "" # ## #?????????####??????????? | | "T + ###+##############"T"########???? | | "" # r @ T ? | | [% [# =[ % s = g ? | | ! =# !%= % g[ ? | | ## ############################% r*s ? | | ?###?????######???????????????# r " ?? | | ??????????????????????????????# """ ########?? | | ??????????????????????????????" "" #????????? | | ?????????????????????????????"T """ #????????? | | ?????????????????????????????"" "" +????????? | | ?????????????????????????????## """ #????????? | | ??????????????????????????????# """?? #????????? | | ?????????????????????????????? """???#????????? | | ?????????????????????????????? "?????????????? | | ?????????????????????????????? ?????????????? | | ?????????????????????????????? ?????????????? | | ?????????????????????????????# ?????????????? | | ?????????????????????????????? ?????????????? | | ??????????????????????????????? ?????????????? | | ??????????????????????????????? ???????????????? | | ?????????????????????????????????????????????????? | | ?????????????????????????????????????????????????? | | ?????????????????????????????????????????????????? | | ?????????????????????????????????????????????????? | | ?????????????????????????????????????????????????? | | ?????????????????????????????????????????????????? | +----------------------------------------------------+ Best States ------------- Heat Dissipation 28 Energy Generation 15 Energy Capacity 290 Matter Stores 300 Matter Capacity 300 Sight Range 18 Terrain Scan Density 10 ECM Strength 1 Armor Coverage 150 Evasion (%) 55 Recoil Reduction 1 Item Schematics ----------------- None Robot Schematics ------------------ None Fabricated ------------ Nothing Alien Tech Used ----------------- None Achievements -------------- None Challenges ------------ None Game ------ Seed RecyclingDeliveryEdition Manual? 0 Play Time 00:26:36 Cumulative 9.6 hours Start 2024.03.04 @ 20:47:00 End 2024.03.04 @ 21:11:17 Sessions 1 Manual Loads 0 Difficulty Rogue Special Mode None Game No. 15 Rogue 15 Adventurer 0 Explorer 0 Win Type - Total 0 Types 0/0/0/0/0/0/0/0/0 Lore% 14 Gallery% 12 Achievement% 14 Wizard Run 0 Options --------- Layout 1 ASCII 0 Keyboard 0 Movement Mouse Keybinds 0 Fullscreen 1 Font 32/SmallcapsGlow Map View 50x35 Zoom Use 1% Tactical HUD 1 Map Filters NONE Filters NONE Steam 1 RUN: d41a3475-c4d1-41a2-8b52-de88f3171c95